bitfinex-derivatives/quotes_BTCF0:USTF0_20250614
["timestamp","ask_amount","ask_price","bid_price","bid_amount"]
[1749887418602,0.8909663,105170.0,105160.0,0.41054972]
[1749887418799,0.8909663,105170.0,105160.0,0.58280273]
[1749887419192,0.8909663,105170.0,105160.0,0.58280257]
[1749887419390,0.8909663,105170.0,105160.0,0.56794118]
[1749887419590,0.8909663,105170.0,105160.0,0.57195984]
[1749887420397,0.8909663,105170.0,105160.0,0.43624362]
[1749887420593,0.8909663,105170.0,105160.0,0.41054972]
[1749887420790,0.8909663,105170.0,105160.0,0.42138316]
[1749887420991,0.8909663,105170.0,105160.0,0.57195984]
[1749887421392,0.8909663,105170.0,105160.0,0.55709845]
[1749887421595,0.8909663,105170.0,105160.0,0.57195984]
[1749887421999,0.8909663,105170.0,105160.0,0.56793189]
[1749887422303,0.8909663,105170.0,105160.0,0.58279328]
[1749887422489,0.8909663,105170.0,105160.0,0.56793189]
[1749887422700,0.8909663,105170.0,105160.0,0.58279329]
[1749887423202,0.8909663,105170.0,105160.0,0.39269309]
[1749887423601,0.8909663,105170.0,105160.0,0.24614436]
[1749887423799,0.8909663,105170.0,105160.0,0.39269309]
[1749887424303,0.8909663,105170.0,105160.0,0.38185964]
[1749887424497,0.8909663,105170.0,105160.0,0.36699825]
[1749887424803,0.8909663,105170.0,105160.0,0.39269189]
[1749887425000,0.8909663,105170.0,105160.0,0.37783048]
[1749887425503,0.74441757,105170.0,105160.0,0.38185964]
[1749887425703,0.8909663,105170.0,105160.0,0.39269187]
[1749887426100,0.74441757,105170.0,105160.0,0.24615347]
[1749887426301,0.8909663,105170.0,105160.0,0.3927022]
[1749887426497,0.8909663,105170.0,105160.0,0.57195974]
[1749887426898,0.8909663,105170.0,105160.0,0.56794091]
[1749887427405,0.8909663,105170.0,105160.0,0.5828023]
[1749887427604,0.8909663,105170.0,105160.0,0.57195974]
[1749887428102,0.8909663,105170.0,105160.0,0.56794091]
[1749887428301,0.8909663,105170.0,105160.0,0.5828023]
[1749887428805,0.8909663,105170.0,105160.0,0.62727719]
[1749887429008,0.8909663,105170.0,105160.0,0.61241555]
[1749887429209,0.8909663,105170.0,105160.0,0.62727694]
[1749887429404,0.8909663,105170.0,105160.0,0.61241554]
[1749887429598,0.8909663,105170.0,105160.0,0.61643463]
[1749887429909,0.8909663,105170.0,105160.0,0.62727694]
[1749887430103,0.8909663,105170.0,105160.0,0.61241544]
[1749887430300,0.8909663,105170.0,105160.0,0.62727698]
[1749887430701,0.8909663,105170.0,105160.0,0.62727697]
[1749887430902,0.80186928,105170.0,105160.0,0.58280208]
[1749887431607,0.80186928,105170.0,105160.0,0.58280135]
[1749887432309,0.80186928,105170.0,105160.0,0.56793996]
[1749887432511,0.80186928,105170.0,105160.0,0.58280125]
[1749887433608,0.89100827,105170.0,105160.0,0.58280125]
[1749887433810,0.89100827,105170.0,105160.0,0.56793986]
[1749887434110,0.89100827,105170.0,105160.0,0.55709835]
[1749887434305,0.89100827,105170.0,105160.0,0.56793986]
[1749887434513,0.80186928,105170.0,105160.0,0.58280125]
[1749887434911,0.79773093,105170.0,105160.0,0.57195974]
[1749887435114,0.79773093,105170.0,105160.0,0.58280125]
[1749887435411,0.79773093,105170.0,105160.0,0.56793986]
[1749887435613,0.79773093,105170.0,105160.0,0.58280125]
[1749887435814,0.80186928,105170.0,105160.0,0.58280125]
[1749887436114,0.80186928,105170.0,105160.0,0.56793986]
[1749887436414,0.80186928,105170.0,105160.0,0.58280125]
[1749887436913,0.6511822,105170.0,105160.0,0.58280125]
[1749887437115,0.79773093,105170.0,105160.0,0.58280124]
[1749887437407,0.79773093,105170.0,105160.0,0.56793984]
[1749887437614,0.79773093,105170.0,105160.0,0.58280122]
[1749887437814,0.6511822,105170.0,105160.0,0.58280122]
[1749887438016,0.67713019,105170.0,105160.0,0.65997471]
[1749887438211,0.67713019,105170.0,105160.0,0.70791371]
[1749887438517,0.67713019,105170.0,105160.0,0.72277406]
[1749887438713,0.67713019,105170.0,105160.0,0.722774]
[1749887439413,0.67713019,105170.0,105160.0,0.57622527]
[1749887439618,0.67713019,105170.0,105160.0,0.66745867]
[1749887439619,0.82367892,105170.0,105160.0,0.66745867]
[1749887439816,0.85507892,105170.0,105160.0,0.67828826]
[1749887440215,0.85507892,105170.0,105160.0,1.30217953]
[1749887440421,0.85507892,105170.0,105160.0,1.44872826]
[1749887440613,0.85507892,105170.0,105160.0,1.44872825]
[1749887441118,0.85507892,105170.0,105160.0,1.44872824]
[1749887441316,0.85507892,105170.0,105160.0,1.44872825]
[1749887441518,0.85507892,105170.0,105160.0,1.43386716]
[1749887441718,0.85507892,105170.0,105160.0,1.43789945]
[1749887441919,0.85921727,105170.0,105160.0,1.44872826]
[1749887442519,0.85921727,105170.0,105160.0,1.43386716]
[1749887442820,0.85921727,105170.0,105160.0,1.44872826]
[1749887443019,0.85921727,105170.0,105160.0,1.44872817]
[1749887444210,0.85921727,105170.0,105160.0,1.43386707]
[1749887444418,0.85921727,105170.0,105160.0,1.44872811]
[1749887444612,0.85921727,105170.0,105160.0,1.44872874]
[1749887444816,0.85921727,105170.0,105160.0,1.04939991]
[1749887445116,0.85921727,105170.0,105160.0,1.18108754]
[1749887445320,0.71266854,105170.0,105160.0,0.06821991]
[1749887445522,0.92186413,105170.0,105160.0,1.01666001]
[1749887445911,0.92186413,105170.0,105160.0,1.16320888]
[1749887446115,0.92186413,105170.0,105160.0,0.06822049]
[1749887446315,0.92186413,105170.0,105160.0,1.14834812]
[1749887446912,0.91772578,105170.0,105160.0,1.01666102]
[1749887447122,0.91772578,105170.0,105160.0,0.99096952]
[1749887447318,0.91772578,105170.0,105160.0,1.00583115]
[1749887447715,0.91772578,105170.0,105160.0,1.01666096]
[1749887447918,0.77117705,105170.0,105160.0,1.01666096]
[1749887448223,0.92186413,105170.0,105160.0,1.00179933]
[1749887448414,0.92186413,105170.0,105160.0,0.99096952]
[1749887448723,0.92186413,105170.0,105160.0,1.01666096]
[1749887448915,0.92186413,105170.0,105160.0,1.00179933]
[1749887449116,0.92186413,105170.0,105160.0,1.01666096]
[1749887449315,0.92186413,105170.0,105160.0,1.14834806]
[1749887449718,0.92186413,105170.0,105160.0,1.16320966]
[1749887449917,0.92186413,105170.0,105160.0,1.33844826]
[1749887450120,0.92186413,105170.0,105160.0,1.16320822]
[1749887450521,0.92186413,105170.0,105160.0,1.13751825]
[1749887450727,0.92186413,105170.0,105160.0,1.16320893]
[1749887451126,0.91772578,105170.0,105160.0,1.16320893]
[1749887451318,0.91772578,105170.0,105160.0,1.16320892]
[1749887452425,0.91772578,105170.0,105160.0,1.15237982]
[1749887452627,0.91772578,105170.0,105160.0,1.16320892]
[1749887452826,0.91772578,105170.0,105160.0,1.1483482]
[1749887453122,0.91772578,105170.0,105160.0,1.16320977]
[1749887453419,0.91772578,105170.0,105160.0,1.13751825]
[1749887453624,0.91772578,105170.0,105160.0,1.16320977]
[1749887453820,0.91772578,105170.0,105160.0,1.13751825]
[1749887454020,0.91772578,105170.0,105160.0,1.16320977]
[1749887454220,0.91772578,105170.0,105160.0,1.34247992]
[1749887454421,0.91772578,105170.0,105160.0,1.35330971]
[1749887454816,0.76593093,105170.0,105160.0,1.34247984]
[1749887455020,0.85507056,105170.0,105160.0,1.43927984]
[1749887455222,0.85507056,105170.0,105160.0,1.45010964]
[1749887455421,0.85507056,105170.0,105160.0,1.49458387]
[1749887455621,0.85507056,105170.0,105160.0,1.49458327]
[1749887455823,0.85507056,105170.0,105160.0,1.4797214]
[1749887456024,0.85507056,105170.0,105160.0,1.49458215]
[1749887456224,0.85507056,105170.0,105160.0,1.49458219]
[1749887456624,0.85507056,105170.0,105160.0,1.49458222]
[1749887456818,0.85507056,105170.0,105160.0,1.49458194]
[1749887457017,0.85507056,105170.0,105160.0,1.49458182]
[1749887457528,0.85507056,105170.0,105160.0,1.4945818]
[1749887457723,0.85507056,105170.0,105160.0,1.48375401]
[1749887457917,0.85507056,105170.0,105160.0,1.48375403]
[1749887458130,0.85507056,105170.0,105160.0,1.49458184]
[1749887458430,0.85507056,105170.0,105160.0,1.49458182]
[1749887458626,0.85507056,105170.0,105160.0,1.49458178]
[1749887458828,0.64602183,105170.0,105160.0,1.48375389]
[1749887459125,0.64602183,105170.0,105160.0,1.48375341]
[1749887459330,0.5568822,105170.0,105160.0,1.55403404]
[1749887459531,0.5568822,105170.0,105160.0,1.55403323]
[1749887459730,0.5568822,105170.0,105160.0,1.55403313]
[1749887459928,0.5568822,105170.0,105160.0,1.55403045]
[1749887460234,0.5568822,105170.0,105160.0,1.5540304]
[1749887460428,0.5538822,105170.0,105160.0,1.5570305]
[1749887461031,0.5538822,105170.0,105160.0,1.54620774]
[1749887461232,0.5538822,105170.0,105160.0,1.5570305]
[1749887461632,0.5508822,105170.0,105160.0,1.5471709]
[1749887461836,0.5508822,105170.0,105160.0,1.56203035]
[1749887462027,0.5508822,105170.0,105160.0,1.56203041]
[1749887462228,0.5508822,105170.0,105160.0,1.55120767]
[1749887462425,0.5508822,105170.0,105160.0,1.56202809]
[1749887463038,0.5508822,105170.0,105160.0,1.56202811]
[1749887463534,0.5508822,105170.0,105160.0,1.56202738]
[1749887463938,0.5508822,105170.0,105160.0,1.56202714]
[1749887464135,0.5508822,105170.0,105160.0,1.56202711]
[1749887464326,0.5508822,105170.0,105160.0,1.56201479]
[1749887464930,0.5508822,105170.0,105160.0,1.56201439]
[1749887465433,0.5508822,105170.0,105160.0,1.56201437]
[1749887466027,0.5508822,105170.0,105160.0,1.53634814]
[1749887466230,0.5508822,105170.0,105160.0,1.54715485]
[1749887466431,0.5508822,105170.0,105160.0,1.55120766]
[1749887466631,0.5508822,105170.0,105160.0,1.54715485]
[1749887466831,0.5508822,105170.0,105160.0,1.55120766]
[1749887467130,0.5508822,105170.0,105160.0,1.56201437]
[1749887467531,0.5508822,105170.0,105160.0,1.55120766]
[1749887467731,0.5508822,105170.0,105160.0,1.491889]
[1749887467940,0.5508822,105170.0,105160.0,1.50269597]
[1749887468234,0.5508822,105170.0,105160.0,1.491889]
[1749887468535,0.5508822,105170.0,105160.0,1.49188889]
[1749887468732,0.5508822,105170.0,105160.0,1.50268576]
[1749887469339,0.5508822,105170.0,105160.0,1.48782615]
[1749887469538,0.5508822,105170.0,105160.0,1.5026786]
[1749887470835,0.69743093,105170.0,105160.0,0.4076766]
[1749887471034,0.69743093,105170.0,105160.0,1.39060647]
[1749887471242,0.88487056,105170.0,105160.0,1.35019249]
[1749887471533,0.88487056,105170.0,105160.0,0.57611049]
[1749887471729,0.88487056,105170.0,105160.0,1.35019294]
[1749887471928,0.88487056,105170.0,105160.0,0.25432248]
[1749887472127,0.88487056,105170.0,105160.0,0.38601067]
[1749887472435,0.88487056,105170.0,105160.0,0.56533202]
[1749887472835,0.88487056,105170.0,105160.0,0.59097226]
[1749887473038,0.88487056,105170.0,105160.0,0.44442389]
[1749887473237,0.88487056,105170.0,105160.0,0.4444239]
[1749887473632,0.88487056,105170.0,105160.0,0.44442992]
[1749887473839,0.88787056,105170.0,105160.0,0.44142992]
[1749887474040,0.88787056,105170.0,105160.0,0.4265685]
[1749887474239,0.88787056,105170.0,105160.0,0.44142989]
[1749887474438,0.89200891,105170.0,105160.0,0.44142989]
[1749887474738,0.89500891,105170.0,105160.0,0.43642989]
[1749887474941,0.89500891,105170.0,105160.0,0.42564468]
[1749887475138,0.89500891,105170.0,105160.0,0.4215685]
[1749887475335,0.89500891,105170.0,105160.0,0.43644331]
[1749887475531,0.89500891,105170.0,105160.0,0.41078329]
[1749887475732,0.89500891,105170.0,105160.0,0.43644331]
[1749887476234,1.98999764,105170.0,105160.0,0.06830311]
[1749887476436,1.87310413,105170.0,105160.0,0.01500548]
[1749887476641,0.1901002,105160.0,105150.0,0.17804]
[1749887476843,0.88144706,105160.0,105150.0,0.17766367]
[1749887477339,0.1901183,105150.0,105140.0,0.1901359]
[1749887477636,0.70524139,105150.0,105140.0,0.4108084]
[1749887477844,0.6162183,105150.0,105140.0,0.48451149]
[1749887478036,0.6162183,105150.0,105140.0,0.51601149]
[1749887478235,0.6162183,105150.0,105140.0,0.33797149]
[1749887478437,0.6162183,105150.0,105140.0,0.51601079]
[1749887478850,0.6162183,105150.0,105140.0,0.5122084]
[1749887479343,0.74651137,105150.0,105140.0,0.52302778]
[1749887479542,0.74651137,105150.0,105140.0,0.5122084]
[1749887479743,0.74651137,105150.0,105140.0,0.52702789]
[1749887480343,0.74651137,105150.0,105140.0,0.2316725]
[1749887480532,0.79147907,105150.0,105140.0,0.02182073]
[1749887480737,0.79147907,105150.0,105140.0,0.19986147]
[1749887480938,0.79147907,105150.0,105140.0,0.18904]
[1749887481142,0.79147907,105150.0,105140.0,0.19986312]
[1749887481347,0.79147907,105150.0,105140.0,0.19986316]
[1749887481645,0.78734072,105150.0,105140.0,0.19986322]
[1749887481941,1.55762072,105150.0,105140.0,0.18904]
[1749887482648,0.79147907,105150.0,105140.0,0.18904]
[1749887483540,0.78734072,105150.0,105140.0,0.19986005]
[1749887483843,0.78734072,105150.0,105140.0,0.18908]
[1749887484039,0.86199786,105150.0,105140.0,0.18908]
[1749887485539,0.86199786,105150.0,105140.0,0.011]
[1749887485841,0.86199786,105150.0,105140.0,0.18908]
[1749887488244,0.86199786,105150.0,105140.0,0.011]
[1749887488451,0.1901363,105140.0,105130.0,0.00014255]
[1749887488650,0.77642937,105140.0,105130.0,1.01508935]
[1749887488845,0.77642937,105140.0,105130.0,1.00022255]
[1749887489550,0.77642937,105140.0,105130.0,1.00622255]
[1749887489738,0.77642937,105140.0,105130.0,1.02108988]
[1749887490147,0.77642937,105140.0,105130.0,1.03316428]
[1749887490148,0.6461363,105140.0,105130.0,1.03316428]
[1749887490348,0.77642937,105140.0,105130.0,1.01496988]
[1749887490548,0.77942937,105140.0,105130.0,1.01496988]
[1749887490851,0.78542937,105140.0,105130.0,1.01496988]
[1749887491049,0.78542937,105140.0,105130.0,0.83700988]
[1749887491252,0.78542937,105140.0,105130.0,1.01500988]
[1749887492244,0.78542937,105140.0,105130.0,1.01500892]
[1749887493748,0.78542937,105140.0,105130.0,1.00014255]
[1749887493947,0.78542937,105140.0,105130.0,1.01500891]
[1749887494757,0.6551363,105140.0,105130.0,1.01500891]
[1749887494952,0.5599363,105140.0,105130.0,1.22319665]
[1749887495150,0.5599363,105140.0,105130.0,1.41578972]
[1749887495351,0.5599363,105140.0,105130.0,1.43065609]
[1749887495649,0.5599363,105140.0,105130.0,1.29632295]
[1749887495844,0.5599363,105140.0,105130.0,1.30036105]
[1749887496157,0.5569363,105140.0,105130.0,1.30036104]
[1749887496347,0.5569363,105140.0,105130.0,1.31218626]
[1749887496552,0.5569363,105140.0,105130.0,1.29732187]
[1749887496747,0.56107465,105140.0,105130.0,1.31218627]
[1749887496948,0.55507465,105140.0,105130.0,1.28849665]
[1749887497149,0.55507465,105140.0,105130.0,2.07392104]
[1749887497349,0.55507465,105140.0,105130.0,2.05905665]
[1749887497654,0.55507465,105140.0,105130.0,2.07392104]
[1749887498048,0.55507465,105140.0,105130.0,2.05905665]
[1749887498249,0.55507465,105140.0,105130.0,2.07392105]
[1749887498448,0.55507465,105140.0,105130.0,2.05905665]
[1749887498748,0.55507465,105140.0,105130.0,2.06988101]
[1749887499249,0.55507465,105140.0,105130.0,2.0847454]
[1749887499557,0.55507465,105140.0,105130.0,2.12777593]
[1749887499750,0.55507465,105140.0,105130.0,2.1020872]
[1749887500053,0.5509363,105140.0,105130.0,2.12777572]
[1749887500359,0.5509363,105140.0,105130.0,2.12777496]
[1749887500753,0.5509363,105140.0,105130.0,2.12777495]
[1749887501057,0.55507465,105140.0,105130.0,2.11291056]
[1749887501258,0.55507465,105140.0,105130.0,1.17921495]
[1749887501560,0.55507465,105140.0,105130.0,2.12753495]
[1749887501856,0.68536772,105140.0,105130.0,1.17922204]
[1749887502049,0.68536772,105140.0,105130.0,2.12754203]
[1749887502250,0.68536772,105140.0,105130.0,2.12755805]
[1749887502446,0.68536772,105140.0,105130.0,2.1018472]
[1749887502651,0.68536772,105140.0,105130.0,2.12755833]
[1749887502948,0.68536772,105140.0,105130.0,2.1018072]
[1749887503257,0.68536772,105140.0,105130.0,2.12756002]
[1749887503456,0.68536772,105140.0,105130.0,2.11269523]
[1749887503945,0.68536772,105140.0,105130.0,2.12755984]
[1749887504151,0.68536772,105140.0,105130.0,2.12755978]
[1749887504452,0.55507465,105140.0,105130.0,2.12755978]
[1749887504653,0.55507465,105140.0,105130.0,2.11269499]
[1749887504853,0.55507465,105140.0,105130.0,2.12755978]
[1749887507451,0.55507465,105140.0,105130.0,2.11269499]
[1749887507653,0.55507465,105140.0,105130.0,2.11667199]
[1749887507858,0.55507465,105140.0,105130.0,2.12755978]
[1749887508357,0.55507465,105140.0,105130.0,2.12752924]
[1749887508557,0.55507465,105140.0,105130.0,2.11266446]
[1749887508758,0.55507465,105140.0,105130.0,2.12752925]
[1749887508956,0.55507465,105140.0,105130.0,2.11667198]
[1749887509151,0.55507465,105140.0,105130.0,2.12752925]
[1749887509363,0.55507465,105140.0,105130.0,2.11266446]
[1749887509959,0.55507465,105140.0,105130.0,2.12752923]
[1749887510155,0.36493835,105140.0,105130.0,2.25782209]
[1749887510358,0.19427435,105140.0,105130.0,2.28725509]
[1749887511059,0.19427435,105140.0,105130.0,2.17182569]
[1749887511364,0.55507435,105140.0,105130.0,2.17182509]
[1749887511555,0.55507435,105140.0,105130.0,2.1718251]
[1749887512357,0.55507435,105140.0,105130.0,2.16096916]
[1749887512564,0.55507435,105140.0,105130.0,2.17182538]
[1749887512957,0.55507435,105140.0,105130.0,2.17182293]
[1749887514466,0.55507435,105140.0,105130.0,2.08449409]
[1749887515668,0.55507435,105140.0,105130.0,2.08450035]
[1749887516766,0.55507435,105140.0,105130.0,1.31422035]
[1749887517067,0.55507435,105140.0,105130.0,2.08446035]
[1749887518467,0.55507435,105140.0,105130.0,1.31422035]
[1749887518668,0.55507435,105140.0,105130.0,2.07360063]
[1749887518868,0.55507435,105140.0,105130.0,2.05873665]
[1749887523775,0.55507435,105140.0,105130.0,1.28849665]
[1749887523975,0.55507435,105140.0,105130.0,2.05869665]
[1749887524779,0.55507435,105140.0,105130.0,2.06955139]
[1749887525680,0.55507435,105140.0,105130.0,1.29935139]
[1749887526180,0.55507435,105140.0,105130.0,2.06955139]
[1749887527083,0.55507435,105140.0,105130.0,1.29935139]
[1749887527472,0.55507435,105140.0,105130.0,2.06955139]
[1749887535188,0.7016652,105140.0,105130.0,2.21614224]
[1749887535385,5e-08,105150.0,105140.0,0.190136]
[1749887535583,0.00014255,105160.0,105150.0,0.1901177]
[1749887535783,0.00014255,105160.0,105150.0,2.57402329]
[1749887535982,0.00014255,105160.0,105150.0,1.62586329]
[1749887536184,0.00014255,105160.0,105150.0,2.57402329]
[1749887536384,0.1467334,105160.0,105150.0,2.57402329]
[1749887537182,0.00014255,105160.0,105150.0,2.57402329]
[1749887537990,0.00014255,105160.0,105150.0,2.57502329]
[1749887538492,0.3368331,105160.0,105150.0,2.57602329]
[1749887538989,0.00014255,105160.0,105150.0,2.57602329]
[1749887539183,0.00014255,105160.0,105150.0,2.56066061]
[1749887539790,0.00014255,105160.0,105150.0,2.55966061]
[1749887540088,0.00014255,105160.0,105150.0,2.56166061]
[1749887541279,0.00014255,105160.0,105150.0,1.61350061]
[1749887541590,0.00014255,105160.0,105150.0,2.56154061]
[1749887543785,0.00014255,105160.0,105150.0,2.56146061]
[1749887544491,0.00014255,105160.0,105150.0,2.55060587]
[1749887544995,0.00014255,105160.0,105150.0,1.60264587]
[1749887545292,0.00014255,105160.0,105150.0,2.55056587]
[1749887550604,0.00014255,105160.0,105150.0,1.4724177]
[1749887550793,0.03134255,105160.0,105150.0,2.55048587]
[1749887551086,0.06144255,105160.0,105150.0,2.55048587]
[1749887551601,0.0655809,105160.0,105150.0,2.55048587]
[1749887552097,0.0655809,105160.0,105150.0,2.4202577]
[1749887552301,0.0655809,105160.0,105150.0,2.55048587]
[1749887552502,0.2556807,105160.0,105150.0,1.4724177]
[1749887552696,0.2556807,105160.0,105150.0,2.55044587]
[1749887552894,0.0655809,105160.0,105150.0,2.55044587]
[1749887553297,0.2556806,105160.0,105150.0,2.55044587]
[1749887553896,0.2556806,105160.0,105150.0,1.60264587]
[1749887554102,0.2556806,105160.0,105150.0,2.55044587]
[1749887554998,0.2556806,105160.0,105150.0,1.6502977]
[1749887555190,0.2556806,105160.0,105150.0,1.4085177]
[1749887555394,0.2867806,105160.0,105150.0,1.0477177]
[1749887555597,0.2867806,105160.0,105150.0,1.9955177]
[1749887557502,0.4054546,105160.0,105150.0,1.9955177]
[1749887557706,0.2867806,105160.0,105150.0,2.03952514]
[1749887557904,0.2867806,105160.0,105150.0,2.14323925]
[1749887558100,0.2867806,105160.0,105150.0,2.27346742]
[1749887558802,0.2867806,105160.0,105150.0,2.28422837]
[1749887559605,0.2867806,105160.0,105150.0,2.16886418]
[1749887560006,0.2867806,105160.0,105150.0,1.22106418]
[1749887560304,0.2867806,105160.0,105150.0,1.99097639]
[1749887560510,0.77780877,105160.0,105150.0,2.07766198]
[1749887561709,0.6475806,105160.0,105150.0,0.30812292]
[1749887561910,0.6475806,105160.0,105150.0,2.06289599]
[1749887562212,0.6475806,105160.0,105150.0,2.07772588]
[1749887562403,0.6475806,105160.0,105150.0,2.06696388]
[1749887562604,0.6475806,105160.0,105150.0,2.07772588]
[1749887562803,0.6475806,105160.0,105150.0,2.07773723]
[1749887563404,0.6475806,105160.0,105150.0,2.07773714]
[1749887563606,0.6475806,105160.0,105150.0,2.07774659]
[1749887563807,0.6475806,105160.0,105150.0,1.12995321]
[1749887564008,0.77780877,105160.0,105150.0,2.06697972]
[1749887564208,0.77780877,105160.0,105150.0,2.07775329]
[1749887564410,0.77780877,105160.0,105150.0,2.06697988]
[1749887564610,0.77780877,105160.0,105150.0,2.13701869]
[1749887564810,0.77780877,105160.0,105150.0,2.12626061]
[1749887565011,0.77780877,105160.0,105150.0,2.13705341]
[1749887565509,0.77780877,105160.0,105150.0,2.12219885]
[1749887566307,0.77780877,105160.0,105150.0,2.13706021]
[1749887566508,0.77780877,105160.0,105150.0,0.10325594]
[1749887566710,0.77780877,105160.0,105150.0,0.92907808]
[1749887566911,0.77780877,105160.0,105150.0,1.84391128]
[1749887567111,0.77780877,105160.0,105150.0,1.83311027]
[1749887567313,0.77780877,105160.0,105150.0,1.83311032]
[1749887567611,0.77780877,105160.0,105150.0,1.84391265]
[1749887568506,0.77780877,105160.0,105150.0,1.82904977]
[1749887568806,0.77780877,105160.0,105150.0,1.85471543]
[1749887569315,0.77780877,105160.0,105150.0,1.82904987]
[1749887569501,0.77780877,105160.0,105150.0,1.85471537]
[1749887569707,0.77780877,105160.0,105150.0,1.84391296]
[1749887569911,0.77780877,105160.0,105150.0,1.82904987]
[1749887570215,0.77780877,105160.0,105150.0,1.85474082]
[1749887570414,0.77780877,105160.0,105150.0,1.85474073]
[1749887570717,0.77780877,105160.0,105150.0,1.84391296]
[1749887571312,0.77780877,105160.0,105150.0,1.83986392]
[1749887571613,0.77780877,105160.0,105150.0,1.8547266]
[1749887571810,0.90803694,105160.0,105150.0,0.0844866]
[1749887572016,0.77780877,105160.0,105150.0,1.03352717]
[1749887572213,0.77780877,105160.0,105150.0,0.26236717]
[1749887572410,0.90803694,105160.0,105150.0,0.21836021]
[1749887572607,0.90803694,105160.0,105150.0,0.20349775]
[1749887572809,0.90803694,105160.0,105150.0,0.20754647]
[1749887573113,0.90389859,105160.0,105150.0,0.21836185]
[1749887573416,0.90389859,105160.0,105150.0,0.21836129]
[1749887573612,0.90389859,105160.0,105150.0,0.21836132]
[1749887574008,0.90389859,105160.0,105150.0,0.21836135]
[1749887574208,0.90389859,105160.0,105150.0,0.21836117]
[1749887574408,0.90389859,105160.0,105150.0,0.21836135]
[1749887574618,0.90389859,105160.0,105150.0,0.21836102]
[1749887574818,0.90389859,105160.0,105150.0,0.2183614]
[1749887575516,0.90389859,105160.0,105150.0,0.21836085]
[1749887575914,0.90389859,105160.0,105150.0,0.19268243]
[1749887576116,0.90389859,105160.0,105150.0,0.20754689]
[1749887576420,0.90389859,105160.0,105150.0,0.02966689]
[1749887576421,0.99899459,105160.0,105150.0,0.02966689]
[1749887576608,0.99899459,105160.0,105150.0,0.19268243]
[1749887577420,0.99899459,105160.0,105150.0,0.20754693]
[1749887577619,0.99899459,105160.0,105150.0,0.20754723]
[1749887578117,0.99899459,105160.0,105150.0,0.20754693]
[1749887578513,0.99899459,105160.0,105150.0,0.02966693]
[1749887578717,1.09899459,105160.0,105150.0,0.20758702]
[1749887578920,1.09899459,105160.0,105150.0,0.20758703]
[1749887579219,1.09899459,105160.0,105150.0,0.20758704]
[1749887580317,1.09899459,105160.0,105150.0,0.19272243]
[1749887580718,1.09899459,105160.0,105150.0,0.20758705]
[1749887581434,1.09899459,105160.0,105150.0,0.20758728]
[1749887582025,1.09899459,105160.0,105150.0,0.20758725]
[1749887582732,1.09899459,105160.0,105150.0,0.19272243]
[1749887582923,1.09899459,105160.0,105150.0,0.20758725]
[1749887583123,1.09899459,105160.0,105150.0,0.19272243]
[1749887583333,1.09899459,105160.0,105150.0,0.20778725]
[1749887583530,1.65289489,105160.0,105140.0,0.17812]
[1749887583723,0.1901541,105130.0,105120.0,0.3796533]
[1749887584032,1.04198227,105130.0,105120.0,2.19480015]
[1749887584229,1.10628227,105130.0,105120.0,2.19480015]
[1749887584429,1.10628227,105130.0,105120.0,1.13882685]
[1749887584622,1.10628227,105130.0,105120.0,2.03537905]
[1749887584929,1.10628227,105130.0,105120.0,2.04237905]
[1749887585324,1.10628227,105130.0,105120.0,2.03837905]
[1749887585524,1.10628227,105130.0,105120.0,2.04037905]
[1749887586226,1.10628227,105130.0,105120.0,2.10127905]
[1749887586626,1.18303224,105130.0,105120.0,2.10127905]
[1749887587128,1.10628227,105130.0,105120.0,2.09827905]
[1749887587330,1.10628227,105130.0,105120.0,2.09927905]
[1749887588318,1.10628227,105130.0,105120.0,2.09999905]
[1749887591826,1.18265557,105130.0,105120.0,2.09999905]
[1749887592330,1.0206274,105130.0,105120.0,2.09999905]
[1749887592532,1.15085557,105130.0,105120.0,2.09967905]
[1749887595334,1.16727359,105130.0,105120.0,2.09967905]
[1749887595534,1.16727359,105130.0,105120.0,2.12507493]
[1749887595737,1.16727359,105130.0,105120.0,2.12507497]
[1749887595928,1.16727359,105130.0,105120.0,2.1102084]
[1749887596232,1.16727359,105130.0,105120.0,2.09967905]
[1749887596429,1.16727359,105130.0,105120.0,2.11020959]
[1749887596635,1.16727359,105130.0,105120.0,2.12507626]
[1749887596831,1.16727359,105130.0,105120.0,2.09967905]
[1749887597024,1.16727359,105130.0,105120.0,2.12507628]
[1749887597431,1.16727359,105130.0,105120.0,2.09967905]
[1749887597637,1.16727359,105130.0,105120.0,2.12507628]
[1749887598236,1.16727359,105130.0,105120.0,2.11020961]
[1749887598431,1.16727359,105130.0,105120.0,2.1250762]
[1749887598735,1.16727359,105130.0,105120.0,2.12506432]
[1749887599136,1.16727359,105130.0,105120.0,2.11019776]
[1749887599334,1.16727359,105130.0,105120.0,2.12506432]
[1749887599837,1.16727359,105130.0,105120.0,2.11020249]
[1749887600135,1.16727359,105130.0,105120.0,2.12506905]
[1749887600435,1.16727359,105130.0,105120.0,2.11454561]
[1749887600935,1.16727359,105130.0,105120.0,2.09967905]
[1749887601326,1.16727359,105130.0,105120.0,2.12510944]
[1749887601526,1.16727359,105130.0,105120.0,2.12510942]
[1749887602732,1.13477359,105130.0,105120.0,2.27175558]
[1749887602923,1.13477359,105130.0,105120.0,2.30133723]
[1749887603126,0.4371733,105130.0,105120.0,2.44798342]
[1749887603325,0.2665274,105130.0,105120.0,2.67695123]
[1749887603631,0.2665274,105130.0,105120.0,2.78071394]
[1749887603933,0.2665274,105130.0,105120.0,2.78071318]
[1749887604134,0.2665274,105130.0,105120.0,2.78071253]
[1749887604331,0.2665274,105130.0,105120.0,2.41991252]
[1749887604528,0.2665274,105130.0,105120.0,2.41991281]
[1749887604836,0.2665274,105130.0,105120.0,2.40935264]
[1749887605029,0.2665274,105130.0,105120.0,2.41991502]
[1749887605238,0.2665274,105130.0,105120.0,2.39300683]
[1749887605536,0.2665274,105130.0,105120.0,2.40356909]
[1749887605736,0.2665274,105130.0,105120.0,2.27326871]
[1749887605934,0.2665274,105130.0,105120.0,2.40356909]
[1749887606135,0.2665274,105130.0,105120.0,2.40356908]
[1749887606337,0.2665274,105130.0,105120.0,2.40356912]
[1749887606634,0.2665274,105130.0,105120.0,2.40356918]
[1749887606833,0.2665274,105130.0,105120.0,2.40356919]
[1749887607026,0.2665274,105130.0,105120.0,2.29980696]
[1749887607234,0.2665274,105130.0,105120.0,2.31467142]
[1749887607437,0.2665274,105130.0,105120.0,2.31467171]
[1749887607732,0.2665274,105130.0,105120.0,2.40356954]
[1749887607935,0.2665274,105130.0,105120.0,2.38870508]
[1749887608235,0.2665274,105130.0,105120.0,2.29980721]
[1749887608624,0.2665274,105130.0,105120.0,2.28924464]
[1749887608830,0.2665274,105130.0,105120.0,2.31467159]
[1749887609036,0.2665274,105130.0,105120.0,2.29980709]
[1749887609238,0.2665274,105130.0,105120.0,2.39300691]
[1749887609537,0.2665274,105130.0,105120.0,2.40352934]
[1749887609835,0.2665274,105130.0,105120.0,2.40352935]
[1749887610037,0.2665274,105130.0,105120.0,2.3886649]
[1749887610236,0.2665274,105130.0,105120.0,2.40352937]
[1749887610738,0.2665274,105130.0,105120.0,2.4035284]
[1749887610938,0.2665274,105130.0,105120.0,2.40352831]
[1749887611137,0.2665274,105130.0,105120.0,2.4035283]
[1749887611636,0.2665274,105130.0,105120.0,2.38866379]